fUST/lending_fUST_20250717
["ID","MTS","AMOUNT","RATE_DAILY","PERIOD"]
[372618589,1752707458015,-1258.46,0.00024108,2]
[372618590,1752707458024,-688.19,0.00024108,2]
[372618591,1752707458034,-532.39,0.00024108,2]
[372618592,1752707458044,-543.0,0.00024109,2]
[372618593,1752707458053,-827.0,0.00024109,2]
[372618594,1752707458063,-1131.36,0.0002411,2]
[372618595,1752707458072,-460.0,0.0002411,2]
[372618596,1752707458082,-552.3,0.0002411,2]
[372618597,1752707458091,-407.0,0.00024133,2]
[372618598,1752707458100,-413.405,0.00024133,2]
[372618599,1752707458109,-823.0,0.00024145,2]
[372618600,1752707458119,-168.0,0.0002415,2]
[372618601,1752707458128,-166.0,0.00024164,7]
[372618602,1752707458138,-168.0,0.00024201,2]
[372618603,1752707458148,-1259.03,0.00024204,2]
[372618604,1752707458157,-668.35,0.00024204,2]
[372618605,1752707458167,-327.32007109,0.00024205,2]
[372618606,1752707458180,-549.50755642,0.00024205,2]
[372618607,1752707458442,-460.0,0.00018725,2]
[372618608,1752707458451,-460.0,0.0002356,2]
[372618609,1752707458461,-460.0,0.00023834,2]
[372618610,1752707458470,-460.0,0.00024108,2]
[372618611,1752707458479,-487.08,0.00024205,2]
[372618612,1752707458489,-151.0,0.00024205,7]
[372618613,1752707458498,-151.0,0.0002421,7]
[372618614,1752707458508,-168.0,0.00024256,2]
[372618615,1752707458517,-1633.844539,0.00024303,8]
[372618616,1752707458526,-460.0,0.00024381,2]
[372618617,1752707458536,-676.79,0.00024382,2]
[372618618,1752707458545,-1258.46,0.00024382,2]
[372618619,1752707458555,-688.19,0.00024382,2]
[372618620,1752707458567,-532.39,0.00024382,2]
[372618621,1752707458576,-536.95127811,0.00024382,2]
[372618622,1752707458586,-543.0,0.00024383,2]
[372618623,1752707458595,-827.0,0.00024383,2]
[372618624,1752707458606,-1131.36,0.00024384,2]
[372618625,1752707458616,-460.0,0.00024384,2]
[372618626,1752707458625,-552.3,0.00024384,2]
[372618627,1752707458636,-2110.16,0.000244,7]
[372618628,1752707458647,-1259.03,0.00024478,2]
[372618629,1752707458657,-668.35,0.00024478,2]
[372618630,1752707458666,-487.08,0.00024479,2]
[372618631,1752707458675,-1630.60134413,0.00024481,2]
[372618632,1752707458684,-947.16721646,0.00024481,2]
[372618633,1752707458693,-3788.66886584,0.00024481,2]
[372618634,1752707458703,-8515.98044319,0.00024481,2]
[372618635,1752707458711,-203.312,0.00024482,2]
[372618636,1752707458720,-175.61,0.00024482,2]
[372618637,1752707458729,-2566.0,0.000245,2]
[372618638,1752707458738,-2566.0,0.000245,2]
[372618639,1752707458747,-2566.0,0.000245,2]
[372618640,1752707458756,-2566.0,0.000245,2]
[372618641,1752707458765,-2566.0,0.000245,2]
[372618642,1752707458775,-2566.0,0.000245,2]
[372618643,1752707458785,-2566.0,0.000245,2]
[372618644,1752707458793,-2566.0,0.000245,2]
[372618645,1752707458802,-2566.0,0.000245,2]
[372618646,1752707458811,-2566.0,0.000245,2]
[372618647,1752707458820,-647.0,0.00024568,2]
[372618648,1752707458829,-2155.0,0.00024568,2]
[372618649,1752707458838,-968.0,0.00024568,2]
[372618650,1752707458847,-151.0,0.000246,5]
[372618651,1752707458857,-23180.78,0.000246,2]
[372618652,1752707458867,-250.0,0.00024607,2]
[372618653,1752707458876,-223.0315306,0.00024649,2]
[372618654,1752707458885,-259.17,0.00024655,2]
[372618655,1752707458894,-676.79,0.00024656,2]
[372618656,1752707458903,-1258.46,0.00024656,2]
[372618657,1752707458911,-688.19,0.00024656,2]
[372618658,1752707458921,-532.39,0.00024656,2]
[372618659,1752707458930,-300.0,0.00024657,2]
[372618660,1752707458938,-300.0,0.00024657,2]
[372618661,1752707458947,-320.0,0.00024657,2]
[372618662,1752707458956,-543.0,0.00024657,2]
[372618663,1752707458965,-827.0,0.00024657,2]
[372618664,1752707458974,-380.0,0.00024658,2]
[372618665,1752707458984,-200.0,0.00024658,15]
[372618666,1752707458993,-500.0,0.00024658,2]
[372618667,1752707459003,-1131.36,0.00024658,2]
[372618668,1752707459013,-430.91,0.00024658,2]
[372618669,1752707459023,-552.3,0.00024658,2]
[372618670,1752707459032,-151.03834,0.0002466,7]
[372618671,1752707459041,-1384.52,0.000247,7]
[372618672,1752707459051,-1259.03,0.00024752,2]
[372618673,1752707459062,-668.35,0.00024752,2]
[372618674,1752707459073,-487.08,0.00024753,2]
[372618675,1752707459084,-158.03,0.000248,4]
[372618676,1752707459093,-159.13,0.000248,4]
[372618677,1752707459103,-14283.32,0.000248,7]
[372618678,1752707459113,-151.0,0.000248,7]
[372618679,1752707459122,-151.0,0.000248,7]
[372618680,1752707459132,-525.58295679,0.000248,7]
[372618681,1752707459142,-3064.45254543,0.000248,2]
[372618682,1752707459151,-150000.0,0.000248,2]
[372618683,1752707459161,-150000.0,0.000248,2]
[372618684,1752707459171,-139943.4032352,0.000248,2]
[372618685,1752707459183,-429.35548269,0.000248,2]
[372618686,1752707459195,-301.40038281,0.000248,2]
[372618687,1752707555641,1538.4284178,0.00017628,2]
[372618693,1752707879208,316.927664,0.00013699,2]
[372618694,1752707972413,11062.41189915,0.00017626,2]
[372618695,1752707972439,13837.58810085,0.00017626,2]
[372618736,1752708468161,215.21496623,0.0001843,2]
[372618799,1752708631946,-912.78638602,0.00018525,2]
[372618811,1752708632149,-251.52186985,0.00018525,2]
[372618812,1752708632167,-1200.0,0.00018529,2]
[372618813,1752708632176,-3433.01637416,0.0001853,2]
[372618814,1752708632186,-925.76765836,0.0001853,2]
[372618815,1752708632196,-168.0,0.00018622,2]
[372618816,1752708632206,-460.0,0.00018623,2]
[372618817,1752708632216,-460.0,0.00018623,2]
[372618818,1752708632225,-202.97774291,0.00018623,2]
[372618819,1752708632235,-460.0,0.00018623,2]
[372618820,1752708632248,-460.0,0.00018623,2]
[372618821,1752708632257,-460.0,0.00018623,2]
[372618822,1752708632267,-460.0,0.00018623,2]
[372618823,1752708632277,-460.0,0.00018623,2]
[372618824,1752708632286,-460.0,0.00018623,2]
[372618825,1752708632296,-208.96342839,0.00018623,2]
[372618826,1752708632305,-2015.46253532,0.00018623,2]
[372618845,1752708637717,-179.77074508,0.00018622,2]
[372618846,1752708637727,-160.32744305,0.00018622,2]
[372618847,1752708637737,-500.0,0.00018622,2]
[372618848,1752708637747,-5498.48875223,0.00018623,2]
[372618850,1752708637764,-1962.54148076,0.00018623,2]
[372618868,1752708643025,-460.0,0.00018623,2]
[372618869,1752708643035,-114.7999999,0.00018623,2]
[372618895,1752708645915,-628.51,0.00018623,2]
[372618896,1752708645926,-6026.61892486,0.00018623,2]
[372618897,1752708645936,-460.0,0.00018624,2]
[372618898,1752708645947,-460.0,0.00018624,2]
[372618899,1752708645957,-460.0,0.00018624,2]
[372618900,1752708645967,-460.0,0.00018624,2]
[372618901,1752708645978,-460.0,0.00018624,2]
[372618902,1752708645988,-460.0,0.00018624,2]
[372618903,1752708645999,-460.0,0.00018624,2]
[372618904,1752708646009,-460.0,0.00018624,2]
[372618906,1752708646019,-460.0,0.00018624,2]
[372618907,1752708646029,-460.0,0.00018624,2]
[372618908,1752708646039,-500.0,0.00018624,2]
[372618909,1752708646048,-460.0,0.00018624,2]
[372618910,1752708646058,-460.0,0.00018624,2]
[372618911,1752708646067,-460.0,0.00018624,2]
[372618912,1752708646077,-460.0,0.00018624,2]
[372618913,1752708646086,-460.0,0.00018624,2]
[372618914,1752708646096,-460.0,0.00018624,2]
[372618915,1752708646106,-460.0,0.00018624,2]
[372618916,1752708646116,-587.6,0.00018624,2]
[372618917,1752708646125,-506.45058787,0.00018624,2]
[372618918,1752708646135,-500.0,0.00018624,2]
[372618919,1752708646145,-460.0,0.00018624,2]
[372618920,1752708646154,-460.0,0.00018624,2]
[372618921,1752708646164,-460.0,0.00018624,2]
[372618922,1752708646174,-298.69539245,0.00018624,2]
[372618923,1752708646186,-161.30460755,0.00018624,2]
[372618924,1752708646196,-460.0,0.00018624,2]
[372618925,1752708646205,-460.0,0.00018624,2]
[372618926,1752708646215,-461.69,0.00018624,2]
[372618927,1752708646226,-460.0,0.00018624,2]
[372618928,1752708646236,-460.0,0.00018624,2]
[372618929,1752708646245,-460.0,0.00018624,2]
[372618930,1752708646255,-460.0,0.00018624,2]
[372618931,1752708646265,-460.0,0.00018624,2]
[372618932,1752708646274,-460.0,0.00018624,2]
[372618933,1752708646287,-634.83,0.00018624,2]
[372618934,1752708646296,-460.0,0.00018624,2]
[372618935,1752708646306,-460.0,0.00018624,2]
[372618936,1752708646316,-142.17079645,0.00018624,2]
[372618937,1752708646328,-317.82920355,0.00018624,2]
[372618938,1752708646338,-460.0,0.00018624,2]
[372618939,1752708646347,-460.0,0.00018624,2]
[372618940,1752708646358,-460.0,0.00018624,2]
[372618941,1752708646368,-460.0,0.00018624,2]
[372618942,1752708646378,-460.0,0.00018624,2]
[372618943,1752708646388,-460.0,0.00018624,2]
[372618944,1752708646398,-460.0,0.00018624,2]
[372618945,1752708646408,-460.0,0.00018624,2]
[372618946,1752708646418,-460.0,0.00018624,2]
[372618947,1752708646428,-460.0,0.00018624,2]
[372618948,1752708646438,-460.0,0.00018624,2]
[372618949,1752708646448,-356.37096881,0.00018624,2]
[372618951,1752708659095,265.2352074,0.00017628,2]
[372618961,1752708866207,-167.68124656,0.00018524,2]
[372618962,1752708866229,-300.0,0.00018525,2]
[372618963,1752708866251,-23532.31875344,0.00018526,2]
[372618964,1752708909166,20000.0,0.00027,120]
[372618965,1752708922471,4973.0599134,0.00017764,2]
[372618966,1752708936756,-300.0,0.00018525,2]
[372618967,1752708936779,-1200.0,0.00018525,2]
[372618968,1752708936802,-10837.24070049,0.00018526,2]
[372618969,1752708936825,-811.24,0.00018619,3]
[372618970,1752708936847,-405.62,0.00018619,3]
[372618971,1752708936870,-202.81,0.00018619,3]
[372618972,1752708936892,-608.47,0.00018619,3]
[372618973,1752708936915,-460.0,0.00018621,2]
[372618974,1752708936937,-460.0,0.00018621,2]
[372618975,1752708936958,-460.0,0.00018622,2]
[372618976,1752708936984,-460.0,0.00018622,2]
[372618977,1752708937006,-460.0,0.00018622,2]
[372618978,1752708937026,-460.0,0.00018622,2]
[372618979,1752708937051,-229.25,0.00018622,2]
[372618980,1752708937074,-460.0,0.00018622,2]
[372618981,1752708937096,-460.0,0.00018622,2]
[372618982,1752708937118,-460.0,0.00018622,2]
[372618983,1752708937259,-460.0,0.00018622,2]
[372618984,1752708937283,-460.0,0.00018622,2]
[372618985,1752708937305,-243.95997708,0.00018622,2]
[372618986,1752708937329,-460.0,0.00018622,2]
[372618987,1752708937353,-460.0,0.00018622,2]
[372618988,1752708937376,-460.0,0.00018622,2]
[372618989,1752708937397,-460.0,0.00018622,2]
[372618990,1752708937419,-460.0,0.00018622,2]
[372618991,1752708937440,-558.57119814,0.00018622,2]
[372618992,1752708937463,-460.0,0.00018622,2]
[372618993,1752708937489,-1031.13,0.00018622,2]
[372618994,1752708937512,-937.13,0.00018622,2]
[372618995,1752708937534,-460.0,0.00018622,2]
[372618996,1752708937556,-460.0,0.00018622,2]
[372618997,1752708937579,-460.0,0.00018622,2]
[372618998,1752708937601,-460.0,0.00018622,2]
[372618999,1752708937623,-460.0,0.00018622,2]
[372619000,1752708937645,-460.0,0.00018622,2]
[372619001,1752708937670,-792.63,0.00018622,2]
[372619002,1752708937693,-261.94812429,0.00018622,2]
[372619004,1752708994617,150.0,0.00017401,2]
[372619010,1752709048483,-300.0,0.0001862,2]
[372619011,1752709048505,-460.0,0.00018621,2]
[372619012,1752709048527,-1200.0,0.00018621,2]
[372619013,1752709048549,-460.0,0.00018621,2]
[372619014,1752709048572,-500.0,0.00018621,2]
[372619015,1752709048594,-460.0,0.00018621,2]
[372619016,1752709048616,-460.0,0.00018621,2]
[372619017,1752709048637,-588.80911844,0.00018621,2]
[372619018,1752709048660,-460.0,0.00018621,2]
[372619019,1752709048681,-460.0,0.00018621,2]
[372619020,1752709048705,-460.0,0.00018621,2]
[372619021,1752709048726,-460.0,0.00018621,2]
[372619022,1752709048747,-460.0,0.00018621,2]
[372619023,1752709048769,-198.05187571,0.00018622,2]
[372619024,1752709048790,-460.0,0.00018622,2]
[372619025,1752709048812,-460.0,0.00018622,2]
[372619026,1752709048835,-460.0,0.00018622,2]
[372619027,1752709048856,-460.0,0.00018622,2]
[372619028,1752709048878,-460.0,0.00018622,2]
[372619029,1752709048901,-594.59,0.00018622,2]
[372619030,1752709048923,-460.0,0.00018622,2]
[372619031,1752709048945,-500.0,0.00018622,2]
[372619032,1752709048966,-460.0,0.00018622,2]
[372619033,1752709048988,-460.0,0.00018622,2]
[372619034,1752709049012,-460.0,0.00018622,2]
[372619035,1752709049036,-460.0,0.00018622,2]
[372619036,1752709049060,-460.0,0.00018622,2]
[372619037,1752709049082,-182.55108318,0.00018622,2]
[372619038,1752709049106,-460.0,0.00018622,2]
[372619039,1752709049129,-460.0,0.00018622,2]
[372619040,1752709049153,-988.86,0.00018622,2]
[372619041,1752709049175,-460.0,0.00018622,2]
[372619042,1752709049199,-460.0,0.00018622,2]
[372619043,1752709049220,-460.0,0.00018622,2]
[372619044,1752709049242,-460.0,0.00018622,2]
[372619045,1752709049262,-460.0,0.00018622,2]
[372619046,1752709049284,-460.0,0.00018622,2]
[372619047,1752709049475,-460.0,0.00018622,2]
[372619048,1752709049497,-460.0,0.00018622,2]
[372619049,1752709049518,-460.0,0.00018622,2]
[372619050,1752709049538,-460.0,0.00018622,2]
[372619051,1752709049560,-460.0,0.00018622,2]
[372619052,1752709049581,-460.0,0.00018622,2]
[372619053,1752709049602,-460.0,0.00018622,2]
[372619054,1752709049623,-460.0,0.00018622,2]
[372619055,1752709049646,-460.0,0.00018622,2]
[372619056,1752709049668,-460.0,0.00018623,2]
[372619057,1752709049689,-460.0,0.00018623,2]
[372619058,1752709049919,-460.0,0.00018623,2]
[372619059,1752709049944,-460.0,0.00018623,2]
[372619060,1752709049967,-460.0,0.00018623,2]
[372619061,1752709049991,-460.0,0.00018623,2]
[372619062,1752709050014,-460.0,0.00018623,2]
[372619063,1752709050042,-460.0,0.00018623,2]
[372619064,1752709050065,-460.0,0.00018623,2]
[372619065,1752709050089,-460.0,0.00018623,2]
[372619066,1752709050114,-460.0,0.00018623,2]
[372619067,1752709050136,-460.0,0.00018623,2]
[372619068,1752709050159,-460.0,0.00018623,2]
[372619069,1752709050186,-500.0,0.00018623,2]
[372619070,1752709050210,-460.0,0.00018623,2]
[372619071,1752709050232,-460.0,0.00018623,2]
[372619072,1752709050254,-460.0,0.00018623,2]
[372619073,1752709050275,-460.0,0.00018623,2]
[372619074,1752709050296,-460.0,0.00018623,2]
[372619075,1752709050321,-460.0,0.00018623,2]
[372619076,1752709050343,-6687.13792267,0.00018623,2]
[372619081,1752709053646,7720.0202736,0.00017624,2]
[372619082,1752709061621,11676.46963937,0.000185,2]
[372619083,1752709061652,20000.0,0.000185,2]
[372619084,1752709061682,20000.0,0.000185,2]
[372619085,1752709061713,20000.0,0.000185,2]
[372619086,1752709061744,16750.38169848,0.000185,2]
[372619087,1752709103341,391.096651,0.00013699,2]
[372619097,1752709481342,836.84096672,0.00018425,2]
[372619100,1752709651132,-300.0,0.00018523,2]
[372619101,1752709651158,-300.0,0.00018523,2]
[372619102,1752709651191,-1200.0,0.00018523,2]
[372619103,1752709651217,-480.0,0.00018523,2]
[372619104,1752709651243,-460.0,0.00018523,2]
[372619105,1752709651269,-460.0,0.00018523,2]
[372619106,1752709651294,-500.0,0.00018523,2]
[372619107,1752709651320,-293.28419716,0.00018523,2]
[372619108,1752709651346,-313.05,0.00018524,2]
[372619109,1752709651374,-179.3,0.00018524,2]
[372619110,1752709651400,-510.66,0.00018524,2]
[372619111,1752709651429,-552.42439063,0.00018524,2]
[372619112,1752709651453,-460.0,0.00018524,2]
[372619113,1752709651476,-460.0,0.00018524,2]
[372619114,1752709651502,-307.59632946,0.00018524,2]
[372619116,1752709691193,795.06625197,0.00018425,2]
[372619117,1752709709510,-460.0,0.00018523,2]
[372619118,1752709709543,-300.0,0.00018523,2]
[372619119,1752709709574,-460.0,0.00018523,2]
[372619120,1752709709606,-460.0,0.00018523,2]
[372619121,1752709709641,-460.0,0.00018523,2]
[372619122,1752709709674,-152.40367054,0.00018524,2]
[372619123,1752709709705,-460.0,0.00018524,2]
[372619124,1752709709738,-592.90218151,0.00018524,2]
[372619125,1752709709771,-417.12482979,0.00018524,2]
[372619126,1752709709804,-460.0,0.00018524,2]
[372619127,1752709709835,-460.0,0.00018524,2]
[372619128,1752709709866,-460.0,0.00018524,2]
[372619129,1752709709897,-460.0,0.00018524,2]
[372619130,1752709709934,-460.0,0.00018524,2]
[372619131,1752709709966,-460.0,0.00018524,2]
[372619132,1752709709997,-460.0,0.00018524,2]
[372619133,1752709710028,-461.97349255,0.00018524,2]
[372619134,1752709710059,-460.0,0.00018524,2]
[372619135,1752709710090,-549.73018254,0.00018524,2]
[372619136,1752709710121,-460.0,0.00018524,2]
[372619137,1752709710153,-462.61955488,0.00018524,2]
[372619138,1752709710185,-512.38,0.00018524,2]
[372619139,1752709710221,-1244.85,0.00018524,2]
[372619140,1752709710253,-460.0,0.00018524,2]
[372619141,1752709710379,-460.0,0.00018524,2]
[372619142,1752709710412,-464.48585198,0.00018524,2]
[372619143,1752709710445,-460.0,0.00018524,2]
[372619144,1752709710477,-460.0,0.00018524,2]
[372619145,1752709710507,-460.0,0.00018524,2]
[372619146,1752709710539,-460.0,0.00018524,2]
[372619147,1752709710568,-387.07869557,0.00018524,2]
[372619148,1752709710597,-460.0,0.00018524,2]
[372619149,1752709710627,-460.0,0.00018524,2]
[372619150,1752709710661,-460.0,0.00018524,2]
[372619151,1752709710692,-460.0,0.00018524,2]
[372619152,1752709710725,-460.0,0.00018524,2]
[372619153,1752709710757,-759.6,0.00018524,2]
[372619154,1752709710787,-460.0,0.00018524,2]
[372619155,1752709710818,-460.0,0.00018524,2]
[372619156,1752709710850,-460.0,0.00018524,2]
[372619157,1752709710883,-460.0,0.00018524,2]
[372619158,1752709710915,-354.85154064,0.00018524,2]
[372619177,1752709729248,-460.0,0.00018523,2]
[372619178,1752709729281,-460.0,0.00018523,2]
[372619179,1752709729315,-460.0,0.00018523,2]
[372619180,1752709729502,-105.14845936,0.00018524,2]
[372619181,1752709729536,-460.0,0.00018524,2]
[372619182,1752709729570,-460.0,0.00018524,2]
[372619183,1752709729603,-466.05106883,0.00018524,2]
[372619184,1752709729639,-1003.13,0.00018524,2]
[372619185,1752709729672,-460.0,0.00018525,2]
[372619186,1752709729704,-460.0,0.00018525,2]
[372619187,1752709729736,-460.0,0.00018525,2]
[372619188,1752709729769,-460.0,0.00018525,2]
[372619189,1752709729806,-460.0,0.00018525,2]
[372619190,1752709729840,-460.0,0.00018525,2]
[372619191,1752709729874,-460.0,0.00018525,2]
[372619192,1752709729905,-460.0,0.00018525,2]
[372619193,1752709729942,-460.0,0.00018525,2]
[372619194,1752709729977,-416.70141312,0.00018525,2]
[372619195,1752709730010,-460.0,0.00018525,2]
[372619196,1752709730044,-460.0,0.00018525,2]
[372619197,1752709730076,-460.0,0.00018525,2]
[372619198,1752709730107,-460.0,0.00018525,2]
[372619199,1752709730139,-460.0,0.00018525,2]
[372619200,1752709730171,-520.73474733,0.00018525,2]
[372619201,1752709730203,-460.0,0.00018525,2]
[372619202,1752709730240,-460.0,0.00018525,2]
[372619203,1752709730274,-460.0,0.00018525,2]
[372619204,1752709730307,-460.0,0.00018525,2]
[372619205,1752709730338,-460.0,0.00018525,2]
[372619206,1752709730368,-236.94235244,0.00018525,2]
[372619207,1752709730401,-460.0,0.00018525,2]
[372619208,1752709730435,-460.0,0.00018525,2]
[372619209,1752709730468,-460.0,0.00018525,2]
[372619210,1752709730500,-460.0,0.00018525,2]
[372619211,1752709730533,-460.0,0.00018525,2]
[372619212,1752709730566,-460.0,0.00018525,2]
[372619213,1752709730597,-202.07786949,0.00018525,2]
[372619214,1752709730630,-460.0,0.00018525,2]
[372619215,1752709730662,-460.0,0.00018525,2]
[372619216,1752709730706,-466.79710821,0.00018525,2]
[372619217,1752709730745,-460.0,0.00018525,2]
[372619218,1752709730782,-460.0,0.00018525,2]
[372619219,1752709730820,-460.0,0.00018525,2]
[372619220,1752709730857,-460.0,0.00018525,2]
[372619221,1752709730895,-22.41698122,0.00018525,2]
[372619222,1752709737922,-460.0,0.00018523,2]
[372619223,1752709737960,-460.0,0.00018524,2]
[372619224,1752709737995,-178.81779799,0.00018524,2]
[372619225,1752709738032,-437.58301878,0.00018525,2]
[372619226,1752709738068,-460.0,0.00018525,2]
[372619227,1752709738104,-460.0,0.00018525,2]
[372619228,1752709738142,-460.0,0.00018525,2]
[372619229,1752709738180,-460.0,0.00018525,2]
[372619230,1752709738218,-460.0,0.00018525,2]
[372619231,1752709738256,-460.0,0.00018525,2]
[372619232,1752709738294,-500.0,0.00018525,2]
[372619233,1752709738331,-460.0,0.00018525,2]
[372619234,1752709738367,-460.0,0.00018525,2]
[372619235,1752709738404,-460.0,0.00018525,2]
[372619236,1752709738594,-460.0,0.00018525,2]
[372619237,1752709738627,-605.37,0.00018525,2]
[372619238,1752709738661,-460.0,0.00018525,2]
[372619239,1752709738698,-464.28221896,0.00018525,2]
[372619240,1752709738731,-460.0,0.00018525,2]
[372619241,1752709738765,-460.0,0.00018525,2]
[372619242,1752709738798,-460.0,0.00018525,2]
[372619243,1752709738832,-460.0,0.00018525,2]
[372619244,1752709738865,-460.0,0.00018525,2]
[372619245,1752709738901,-1378.77,0.00018525,2]
[372619246,1752709738934,-460.0,0.00018525,2]
[372619247,1752709738968,-460.0,0.00018525,2]
[372619248,1752709739002,-460.0,0.00018525,2]
[372619249,1752709739039,-460.0,0.00018525,2]
[372619250,1752709739076,-460.0,0.00018525,2]
[372619251,1752709739110,-460.0,0.00018525,2]
[372619252,1752709739144,-460.0,0.00018525,2]
[372619253,1752709739178,-460.0,0.00018525,2]
[372619254,1752709739212,-460.0,0.00018525,2]
[372619255,1752709739246,-601.73,0.00018525,2]
[372619256,1752709739280,-460.0,0.00018525,2]
[372619257,1752709739315,-460.0,0.00018525,2]
[372619258,1752709739347,-460.0,0.00018525,2]
[372619259,1752709739379,-460.0,0.00018525,2]
[372619260,1752709739411,-460.0,0.00018525,2]
[372619261,1752709739443,-460.0,0.00018525,2]
[372619262,1752709739474,-460.0,0.00018525,2]
[372619263,1752709739506,-193.44696427,0.00018525,2]
[372619267,1752709759661,-460.0,0.00018524,2]
[372619268,1752709759841,-460.0,0.00018524,2]
[372619269,1752709759875,-460.0,0.00018524,2]
[372619270,1752709759907,-18620.0,0.00018525,2]
[372619271,1752709785565,1226.61443183,0.000185,2]
[372619272,1752709785598,20000.0,0.000185,2]
[372619273,1752709785630,20000.0,0.000185,2]
[372619274,1752709785661,20000.0,0.000185,2]
[372619275,1752709785694,20000.0,0.000185,2]
[372619276,1752709785726,20000.0,0.000185,2]
[372619277,1752709785758,20000.0,0.000185,2]
[372619278,1752709785791,20000.0,0.000185,2]
[372619279,1752709785818,26162.41189915,0.000185,2]
[372619280,1752709785840,40000.0,0.000185,2]
[372619297,1752709832232,-960.05583154,0.000185,2]
[372619298,1752709832247,-265.22182124,0.000185,2]
[372619299,1752709832261,-4735.82779267,0.000185,2]
[372619300,1752709832310,-694.4956482,0.000185,2]
[372619301,1752709832323,-2991.01901076,0.000185,2]
[372619302,1752709832336,-189719.50855689,0.000185,2]
[372619311,1752709838827,-390977.51006372,0.000185,2]
[372619312,1752709838836,-300.0,0.00018522,2]
[372619313,1752709838846,-300.0,0.00018522,2]
[372619314,1752709838855,-1200.0,0.00018522,2]
[372619315,1752709838865,-460.0,0.00018523,2]
[372619316,1752709838875,-460.0,0.00018523,2]
[372619317,1752709838884,-167.9467967,0.00018523,2]
[372619318,1752709838894,-460.0,0.00018523,2]
[372619319,1752709838903,-482.23671838,0.00018523,2]
[372619320,1752709838913,-460.0,0.00018523,2]
[372619321,1752709838923,-356.28136221,0.00018523,2]
[372619322,1752709838935,-625.43,0.00018523,2]
[372619323,1752709838945,-460.0,0.00018523,2]
[372619324,1752709838956,-460.0,0.00018523,2]
[372619325,1752709838965,-460.0,0.00018523,2]
[372619326,1752709838976,-460.0,0.00018523,2]
[372619327,1752709838985,-460.0,0.00018524,2]
[372619328,1752709838995,-460.0,0.00018524,2]
[372619329,1752709839005,-460.0,0.00018524,2]
[372619330,1752709839014,-460.0,0.00018524,2]
[372619331,1752709839023,-460.0,0.00018524,2]
[372619332,1752709839033,-460.0,0.00018524,2]
[372619333,1752709839043,-460.0,0.00018524,2]
[372619334,1752709839055,-460.0,0.00018524,2]
[372619335,1752709839065,-460.0,0.00018524,2]
[372619336,1752709839074,-3072.9320949,0.00018525,2]
[372619337,1752709839083,-266.55303573,0.00018525,2]
[372619338,1752709839093,-422.15716713,0.00018525,2]
[372619339,1752709839102,-460.0,0.00018525,2]
[372619340,1752709839112,-460.0,0.00018525,2]
[372619341,1752709839121,-460.0,0.00018525,2]
[372619342,1752709839131,-460.0,0.00018525,2]
[372619343,1752709839140,-460.0,0.00018525,2]
[372619344,1752709839152,-460.0,0.00018525,2]
[372619345,1752709839163,-460.0,0.00018525,2]